[Event "Nové Hrady - Rapid A"]
[Site "Nové Hrady, Czech Republic"]
[Date "2024.08.10"]
[Round "1.7"]
[White "Rausch, Rudolf"]
[Black "Šrámek, Jan"]
[Result "1-0"]
[TimeControl "2x15min+5s"]
[WhiteFideId "1639455"]
[BlackFideId "23743638"]
[WhiteElo "1838"]
[BlackElo "1555"]

1. d4 {[%clk 00:15:07]} {[%emt 00:00:02]} d5 {[%clk 00:14:57]} {[%emt
00:00:14]} 2. c4 {[%clk 00:15:07]} {[%emt 00:00:04]} Nf6 {[%clk 00:14:49]}
{[%emt 00:00:13]} 3. Nc3 {[%clk 00:15:07]} {[%emt 00:00:05]} dxc4 {[%clk
00:14:39]} {[%emt 00:00:14]} 4. e3 {[%clk 00:15:07]} {[%emt 00:00:06]} Nc6
{[%clk 00:14:33]} {[%emt 00:00:12]} 5. Bxc4 {[%clk 00:15:08]} {[%emt 00:00:03]}
Bg4 {[%clk 00:14:27]} {[%emt 00:00:11]} 6. Qb3 {[%clk 00:13:43]} {[%emt
00:01:30]} e6 {[%clk 00:13:26]} {[%emt 00:01:07]} 7. Qxb7 {[%clk 00:13:16]}
{[%emt 00:00:31]} Na5 {[%clk 00:13:24]} {[%emt 00:00:08]} 8. Bb5+ {[%clk
00:12:50]} {[%emt 00:00:29]} Nd7 {[%clk 00:13:21]} {[%emt 00:00:09]} 9. Bxd7+
{[%clk 00:12:42]} {[%emt 00:00:12]} Kxd7 {[%clk 00:13:12]} {[%emt 00:00:15]} 10.
Qb5+ {[%clk 00:12:36]} {[%emt 00:00:10]} Nc6 {[%clk 00:13:09]} {[%emt
00:00:09]} 11. h3 {[%clk 00:12:29]} {[%emt 00:00:12]} Bf5 {[%clk 00:12:22]}
{[%emt 00:00:52]} 12. d5 {[%clk 00:12:17]} {[%emt 00:00:17]} exd5 {[%clk
00:11:58]} {[%emt 00:00:30]} 13. Qxd5+ {[%clk 00:12:11]} {[%emt 00:00:10]} Ke8
{[%clk 00:11:37]} {[%emt 00:00:27]} 14. Qxf5 {[%clk 00:11:39]} {[%emt
00:00:32]} Nb4 {[%clk 00:11:12]} {[%emt 00:00:34]} 15. Qb5+ {[%clk 00:11:34]}
{[%emt 00:00:09]} c6 {[%clk 00:11:11]} {[%emt 00:00:08]} 16. Qa4 {[%clk
00:11:30]} {[%emt 00:00:08]} Nd3+ {[%clk 00:11:01]} {[%emt 00:00:16]} 17. Ke2
{[%clk 00:11:20]} {[%emt 00:00:12]} Ne5 {[%clk 00:10:37]} {[%emt 00:00:32]} 18.
Qe4 {[%clk 00:10:54]} {[%emt 00:00:28]} f6 {[%clk 00:10:09]} {[%emt 00:00:35]}
19. f4 {[%clk 00:10:48]} {[%emt 00:00:11]} Qd6 {[%clk 00:09:57]} {[%emt
00:00:18]} 20. fxe5 {[%clk 00:10:46]} {[%emt 00:00:05]} fxe5 {[%clk 00:09:57]}
{[%emt 00:00:07]} 21. Nf3 {[%clk 00:10:43]} {[%emt 00:00:07]} Be7 {[%clk
00:09:54]} {[%emt 00:00:09]} 22. Nxe5 {[%clk 00:10:25]} {[%emt 00:00:21]} Rf8
{[%clk 00:09:32]} {[%emt 00:00:27]} 23. Qxc6+ {[%clk 00:10:19]} {[%emt
00:00:12]} Qxc6 {[%clk 00:09:26]} {[%emt 00:00:12]} 24. Nxc6 {[%clk 00:10:21]}
{[%emt 00:00:02]} Bh4 {[%clk 00:09:22]} {[%emt 00:00:09]} 25. Rf1 {[%clk
00:10:12]} {[%emt 00:00:12]} Bf6 {[%clk 00:09:07]} {[%emt 00:00:22]} 26. Bd2
{[%clk 00:09:42]} {[%emt 00:00:35]} a6 {[%clk 00:07:33]} {[%emt 00:01:41]} 27.
Nd4 {[%clk 00:09:22]} {[%emt 00:00:24]} Rb8 {[%clk 00:07:24]} {[%emt 00:00:14]}
28. b3 {[%clk 00:09:05]} {[%emt 00:00:21]} Kd7 {[%clk 00:06:50]} {[%emt
00:00:39]} 29. Rad1 {[%clk 00:08:43]} {[%emt 00:00:26]} Rfe8 {[%clk 00:06:36]}
{[%emt 00:00:21]} 30. Kd3 {[%clk 00:08:16]} {[%emt 00:00:30]} Rbd8 {[%clk
00:06:05]} {[%emt 00:00:38]} 31. Kc2 {[%clk 00:08:10]} {[%emt 00:00:09]} Kc7
{[%clk 00:05:50]} {[%emt 00:00:21]} 32. Nce2 {[%clk 00:07:34]} {[%emt
00:00:41]} Re5 {[%clk 00:05:04]} {[%emt 00:00:52]} 33. Kb1 {[%clk 00:07:26]}
{[%emt 00:00:13]} Re7 {[%clk 00:04:36]} {[%emt 00:00:33]} 34. Ba5+ {[%clk
00:07:22]} {[%emt 00:00:08]} 1-0

[Event "Nové Hrady - Rapid A"]
[Site "Nové Hrady, Czech Republic"]
[Date "2024.08.10"]
[Round "1.8"]
[White "Schneider, Wolfgang"]
[Black "Rendl, Luboš"]
[Result "0-1"]
[TimeControl "2x15min+5s"]
[WhiteFideId "1639471"]
[BlackFideId "23750197"]
[WhiteElo "1542"]
[BlackElo "1848"]

1. e4 {[%clk 00:15:07]} {[%emt 00:00:03]} c5 {[%clk 00:15:07]} {[%emt
00:00:03]} 2. d3 {[%clk 00:15:05]} {[%emt 00:00:07]} Nc6 {[%clk 00:15:08]}
{[%emt 00:00:04]} 3. Nf3 {[%clk 00:14:55]} {[%emt 00:00:15]} d6 {[%clk
00:15:08]} {[%emt 00:00:05]} 4. a3 {[%clk 00:14:48]} {[%emt 00:00:13]} Nf6
{[%clk 00:15:05]} {[%emt 00:00:07]} 5. Be2 {[%clk 00:14:39]} {[%emt 00:00:14]}
g6 {[%clk 00:15:03]} {[%emt 00:00:07]} 6. h3 {[%clk 00:14:24]} {[%emt
00:00:20]} Bg7 {[%clk 00:14:39]} {[%emt 00:00:29]} 7. O-O {[%clk 00:13:30]}
{[%emt 00:00:59]} O-O {[%clk 00:14:35]} {[%emt 00:00:09]} 8. Nc3 {[%clk
00:12:50]} {[%emt 00:00:45]} a6 {[%clk 00:14:24]} {[%emt 00:00:17]} 9. Bd2
{[%clk 00:12:38]} {[%emt 00:00:17]} b5 {[%clk 00:14:07]} {[%emt 00:00:22]} 10.
Nd5 {[%clk 00:11:54]} {[%emt 00:00:48]} Nxd5 {[%clk 00:13:41]} {[%emt
00:00:32]} 11. exd5 {[%clk 00:11:49]} {[%emt 00:00:09]} Nd4 {[%clk 00:13:35]}
{[%emt 00:00:10]} 12. Rb1 {[%clk 00:11:40]} {[%emt 00:00:14]} Bb7 {[%clk
00:13:27]} {[%emt 00:00:14]} 13. c4 {[%clk 00:11:11]} {[%emt 00:00:34]} Re8
{[%clk 00:11:31]} {[%emt 00:02:01]} 14. Re1 {[%clk 00:10:29]} {[%emt 00:00:45]}
Qb6 {[%clk 00:07:14]} {[%emt 00:04:22]} 15. Nxd4 {[%clk 00:10:07]} {[%emt
00:00:29]} Bxd4 {[%clk 00:06:58]} {[%emt 00:00:21]} 16. Bc3 {[%clk 00:09:01]}
{[%emt 00:01:12]} Bxc3 {[%clk 00:05:38]} {[%emt 00:01:24]} 17. bxc3 {[%clk
00:09:01]} {[%emt 00:00:05]} Qa5 {[%clk 00:02:47]} {[%emt 00:02:56]} 18. Rb3
{[%clk 00:08:15]} {[%emt 00:00:50]} Reb8 {[%clk 00:02:13]} {[%emt 00:00:40]} 19.
Qc2 {[%clk 00:07:57]} {[%emt 00:00:23]} Bc8 {[%clk 00:02:03]} {[%emt 00:00:16]}
20. Kh2 {[%clk 00:07:23]} {[%emt 00:00:38]} bxc4 {[%clk 00:01:27]} {[%emt
00:00:41]} 21. dxc4 {[%clk 00:07:18]} {[%emt 00:00:09]} Bd7 {[%clk 00:01:26]}
{[%emt 00:00:07]} 22. Bf3 {[%clk 00:06:46]} {[%emt 00:00:37]} Kf8 {[%clk
00:01:04]} {[%emt 00:00:28]} 23. Reb1 {[%clk 00:06:22]} {[%emt 00:00:29]} Qc7
{[%emt 00:00:34]} 24. Rxb8+ {[%clk 00:06:09]} {[%emt 00:00:10]} Rxb8 {[%clk
00:00:46]} {[%emt 00:00:01]} 25. Be4 {[%clk 00:05:54]} {[%emt 00:00:20]} Kg7
{[%clk 00:00:22]} {[%emt 00:00:30]} 26. f3 {[%clk 00:05:47]} {[%emt 00:00:12]}
Be8 {[%clk 00:00:11]} {[%emt 00:00:16]} 27. g4 {[%clk 00:05:32]} {[%emt
00:00:19]} Qc8 {[%clk 00:00:07]} {[%emt 00:00:09]} 28. Rxb8 {[%clk 00:05:25]}
{[%emt 00:00:11]} Qxb8 {[%clk 00:00:12]} 29. Kg3 {[%clk 00:05:18]} {[%emt
00:00:13]} Qb6 {[%clk 00:00:12]} {[%emt 00:00:04]} 30. a4 {[%clk 00:05:14]}
{[%emt 00:00:10]} Qa5 {[%clk 00:00:14]} {[%emt 00:00:02]} 31. Qb3 {[%clk
00:05:12]} {[%emt 00:00:08]} Qxa4 {[%clk 00:00:13]} {[%emt 00:00:06]} 32. Qb2
{[%clk 00:04:54]} {[%emt 00:00:22]} Qxc4 {[%clk 00:00:12]} {[%emt 00:00:08]} 33.
h4 {[%clk 00:04:23]} {[%emt 00:00:35]} Qb5 {[%clk 00:00:14]} {[%emt 00:00:03]}
34. Qd2 {[%clk 00:04:09]} {[%emt 00:00:18]} a5 {[%clk 00:00:14]} {[%emt
00:00:07]} 35. Bd3 {[%clk 00:03:47]} {[%emt 00:00:27]} Qb3 {[%clk 00:00:10]}
{[%emt 00:00:08]} 36. Bc2 {[%clk 00:03:33]} {[%emt 00:00:19]} Qb2 {[%clk
00:00:06]} {[%emt 00:00:09]} 37. c4 {[%clk 00:03:21]} {[%emt 00:00:16]} Ba4
{[%clk 00:00:08]} {[%emt 00:00:05]} 38. Qe2 {[%clk 00:03:05]} {[%emt 00:00:20]}
Qxc2 {[%clk 00:00:06]} {[%emt 00:00:07]} 39. Qxc2 {[%clk 00:02:54]} {[%emt
00:00:16]} Bxc2 {[%clk 00:00:09]} {[%emt 00:00:01]} 40. Kf2 {[%clk 00:02:48]}
{[%emt 00:00:11]} a4 {[%clk 00:00:13]} {[%emt 00:00:02]} 41. Ke2 {[%clk
00:02:51]} {[%emt 00:00:02]} a3 {[%clk 00:00:14]} {[%emt 00:00:04]} 42. Kd2
{[%clk 00:02:53]} {[%emt 00:00:03]} a2 {[%clk 00:00:15]} {[%emt 00:00:05]} 43.
Kxc2 {[%clk 00:02:52]} {[%emt 00:00:06]} a1=Q {[%clk 00:00:17]} {[%emt
00:00:03]} 44. Kb3 {[%clk 00:02:49]} {[%emt 00:00:07]} Qd1+ {[%clk 00:00:17]}
{[%emt 00:00:05]} 45. Kc3 {[%clk 00:02:51]} {[%emt 00:00:03]} Qxf3+ {[%clk
00:00:20]} {[%emt 00:00:02]} 46. Kb2 {[%clk 00:02:43]} {[%emt 00:00:13]} Qxg4
{[%clk 00:00:20]} {[%emt 00:00:05]} 47. Kb3 {[%clk 00:02:44]} {[%emt 00:00:04]}
Qd1+ {[%clk 00:00:17]} {[%emt 00:00:08]} 48. Kc3 {[%clk 00:02:38]} {[%emt
00:00:11]} Kf6 {[%clk 00:00:20]} {[%emt 00:00:02]} 49. Kb2 {[%clk 00:02:33]}
{[%emt 00:00:11]} Ke5 {[%clk 00:00:23]} 50. Kc3 {[%clk 00:02:24]} {[%emt
00:00:14]} Ke4 {[%clk 00:00:24]} {[%emt 00:00:04]} 51. Kb2 {[%clk 00:02:23]}
{[%emt 00:00:07]} Kd3 {[%clk 00:00:21]} {[%emt 00:00:07]} 52. Ka3 {[%clk
00:02:22]} {[%emt 00:00:07]} Kc3 {[%clk 00:00:16]} {[%emt 00:00:10]} 53. Ka2
{[%clk 00:02:18]} {[%emt 00:00:09]} Qb3+ {[%clk 00:00:16]} {[%emt 00:00:03]} 54.
Ka1 {[%clk 00:02:18]} {[%emt 00:00:07]} Qb2# {[%clk 00:00:18]} {[%emt
00:00:02]} 0-1

[Event "Nové Hrady - Rapid A"]
[Site "Nové Hrady, Czech Republic"]
[Date "2024.08.10"]
[Round "2.1"]
[White "Rendl, Luboš"]
[Black "Hák, David"]
[Result "0-1"]
[TimeControl "2x15min+5s"]
[WhiteFideId "23750197"]
[BlackFideId "377007"]
[WhiteElo "1848"]
[BlackElo "2192"]

1. e4 {[%clk 00:15:07]} {[%emt 00:00:03]} c5 {[%clk 00:15:10]} 2. b4 {[%clk
00:15:06]} {[%emt 00:00:08]} cxb4 {[%clk 00:14:36]} {[%emt 00:00:37]} 3. a3
{[%clk 00:15:09]} d5 {[%clk 00:14:40]} {[%emt 00:00:03]} 4. exd5 {[%clk
00:15:07]} {[%emt 00:00:07]} Qxd5 {[%clk 00:14:44]} {[%emt 00:00:02]} 5. Nf3
{[%clk 00:15:11]} Bg4 {[%clk 00:12:59]} {[%emt 00:01:50]} 6. Be2 {[%clk
00:14:45]} {[%emt 00:00:30]} Bxf3 {[%clk 00:10:49]} {[%emt 00:02:15]} 7. gxf3
{[%clk 00:14:44]} {[%emt 00:00:06]} e5 {[%clk 00:10:41]} {[%emt 00:00:14]} 8.
axb4 {[%clk 00:13:59]} {[%emt 00:00:49]} Bxb4 {[%clk 00:10:36]} {[%emt
00:00:09]} 9. Rg1 {[%clk 00:13:22]} {[%emt 00:00:43]} Nc6 {[%clk 00:09:14]}
{[%emt 00:01:28]} 10. Bb2 {[%clk 00:12:13]} {[%emt 00:01:14]} Nge7 {[%clk
00:08:42]} {[%emt 00:00:37]} 11. Nc3 {[%clk 00:11:04]} {[%emt 00:01:13]} Bxc3
{[%clk 00:08:39]} {[%emt 00:00:08]} 12. Bxc3 {[%clk 00:11:08]} {[%emt
00:00:02]} O-O {[%clk 00:08:03]} {[%emt 00:00:40]} 13. Ra4 {[%clk 00:10:12]}
{[%emt 00:01:02]} Nd4 {[%clk 00:07:30]} {[%emt 00:00:38]} 14. Bxd4 {[%clk
00:08:13]} {[%emt 00:02:04]} exd4 {[%clk 00:07:33]} 15. Qa1 {[%clk 00:08:15]}
{[%emt 00:00:05]} Nf5 {[%clk 00:07:18]} {[%emt 00:00:19]} 16. Ra5 {[%clk
00:07:43]} {[%emt 00:00:38]} Qe6 {[%clk 00:06:52]} {[%emt 00:00:29]} 17. Kd1
{[%clk 00:07:31]} {[%emt 00:00:18]} b6 {[%clk 00:05:29]} {[%emt 00:01:28]} 18.
Rxa7 {[%clk 00:06:25]} {[%emt 00:01:11]} Rxa7 {[%clk 00:05:33]} 19. Qxa7 {[%clk
00:06:27]} {[%emt 00:00:04]} Qc6 {[%clk 00:05:36]} {[%emt 00:00:02]} 20. Qa3
{[%clk 00:05:56]} {[%emt 00:00:36]} Ra8 {[%clk 00:04:29]} {[%emt 00:01:12]} 21.
Qb2 {[%clk 00:05:25]} {[%emt 00:00:37]} g6 {[%clk 00:03:49]} {[%emt 00:00:45]}
22. Bd3 {[%clk 00:04:59]} {[%emt 00:00:31]} Qxf3+ {[%clk 00:03:14]} {[%emt
00:00:40]} 23. Kc1 {[%clk 00:04:57]} {[%emt 00:00:07]} Qxf2 {[%clk 00:02:32]}
{[%emt 00:00:47]} 24. Rf1 {[%clk 00:05:00]} {[%emt 00:00:02]} Qg2 {[%clk
00:02:36]} 25. Rxf5 {[%clk 00:03:53]} {[%emt 00:01:12]} gxf5 {[%clk 00:02:30]}
{[%emt 00:00:11]} 26. Qxd4 {[%clk 00:03:56]} {[%emt 00:00:03]} Qh1+ {[%clk
00:02:34]} 27. Kb2 {[%clk 00:03:32]} {[%emt 00:00:30]} Qa1+ {[%emt 00:00:06]}
0-1

[Event "Nové Hrady - Rapid A"]
[Site "Nové Hrady, Czech Republic"]
[Date "2024.08.10"]
[Round "2.2"]
[White "Steinbauer, Sebastián"]
[Black "Dudarec, Elias"]
[Result "0-1"]
[TimeControl "2x15min+5s"]
[WhiteFideId "399272"]
[BlackFideId "23714930"]
[WhiteElo "2018"]
[BlackElo "1588"]

1. e4 {[%clk 00:15:07]} {[%emt 00:00:03]} e6 {[%clk 00:15:09]} {[%emt
00:00:01]} 2. d4 {[%clk 00:15:08]} {[%emt 00:00:04]} d5 {[%clk 00:15:12]} 3.
exd5 {[%clk 00:15:12]} {[%emt 00:00:02]} exd5 {[%clk 00:15:16]} {[%emt
00:00:02]} 4. Bd3 {[%clk 00:15:13]} {[%emt 00:00:02]} Bd6 {[%clk 00:15:15]}
{[%emt 00:00:07]} 5. Nf3 {[%clk 00:15:17]} Nf6 {[%clk 00:15:18]} {[%emt
00:00:02]} 6. c3 {[%clk 00:15:11]} {[%emt 00:00:11]} O-O {[%clk 00:15:19]}
{[%emt 00:00:04]} 7. O-O {[%clk 00:15:14]} {[%emt 00:00:02]} Bg4 {[%clk
00:15:16]} {[%emt 00:00:08]} 8. Bg5 {[%clk 00:15:17]} {[%emt 00:00:02]} c6
{[%clk 00:15:11]} {[%emt 00:00:10]} 9. Nbd2 {[%clk 00:15:21]} {[%emt 00:00:01]}
Nbd7 {[%clk 00:15:14]} {[%emt 00:00:02]} 10. Qc2 {[%clk 00:15:24]} {[%emt
00:00:02]} Qc7 {[%clk 00:15:01]} {[%emt 00:00:17]} 11. Bh4 {[%clk 00:15:17]}
{[%emt 00:00:13]} Bh5 {[%clk 00:14:09]} {[%emt 00:00:56]} 12. Bg3 {[%clk
00:15:17]} {[%emt 00:00:05]} Bg6 {[%clk 00:14:09]} {[%emt 00:00:06]} 13. Bxg6
{[%clk 00:14:39]} {[%emt 00:00:43]} fxg6 {[%clk 00:13:26]} {[%emt 00:00:47]} 14.
Bxd6 {[%clk 00:14:39]} {[%emt 00:00:05]} Qxd6 {[%clk 00:13:29]} {[%emt
00:00:03]} 15. Rae1 {[%clk 00:14:39]} {[%emt 00:00:04]} Rae8 {[%clk 00:13:15]}
{[%emt 00:00:20]} 16. c4 {[%clk 00:14:00]} {[%emt 00:00:44]} Qf4 {[%clk
00:12:12]} {[%emt 00:01:08]} 17. Qb3 {[%clk 00:13:31]} {[%emt 00:00:33]} b6
{[%clk 00:09:45]} {[%emt 00:02:33]} 18. Qa4 {[%clk 00:11:58]} {[%emt 00:01:36]}
Rxe1 {[%clk 00:08:36]} {[%emt 00:01:15]} 19. Rxe1 {[%clk 00:11:48]} {[%emt
00:00:16]} Ne4 {[%clk 00:08:22]} {[%emt 00:00:19]} 20. Qxc6 {[%clk 00:11:10]}
{[%emt 00:00:43]} Nxd2 {[%clk 00:07:27]} {[%emt 00:01:00]} 21. Qxd7 {[%clk
00:09:12]} {[%emt 00:02:02]} dxc4 {[%clk 00:05:27]} {[%emt 00:02:05]} 22. Qe6+
{[%clk 00:05:12]} {[%emt 00:04:05]} Kh8 {[%clk 00:05:22]} {[%emt 00:00:11]} 23.
Qe3 {[%clk 00:04:33]} {[%emt 00:00:44]} Nxf3+ {[%clk 00:03:55]} {[%emt
00:01:32]} 24. Qxf3 {[%clk 00:04:02]} {[%emt 00:00:36]} Qxf3 {[%clk 00:03:00]}
{[%emt 00:01:00]} 25. gxf3 {[%clk 00:04:05]} Kg8 {[%clk 00:02:58]} {[%emt
00:00:08]} 26. Kg2 {[%clk 00:03:49]} {[%emt 00:00:22]} Kf7 {[%clk 00:02:37]}
{[%emt 00:00:26]} 27. Re4 {[%clk 00:03:44]} {[%emt 00:00:10]} Re8 {[%clk
00:02:18]} {[%emt 00:00:24]} 28. Kf1 {[%clk 00:03:38]} {[%emt 00:00:12]} Re6
{[%clk 00:02:06]} {[%emt 00:00:16]} 29. Ke2 {[%clk 00:03:32]} {[%emt 00:00:11]}
Kf6 {[%clk 00:01:38]} {[%emt 00:00:33]} 30. Ke3 {[%clk 00:03:29]} {[%emt
00:00:08]} Rd6 {[%clk 00:01:01]} {[%emt 00:00:42]} 31. Re5 {[%clk 00:03:15]}
{[%emt 00:00:19]} a6 {[%clk 00:00:50]} {[%emt 00:00:17]} 32. Ke4 {[%clk
00:03:11]} {[%emt 00:00:08]} b5 {[%clk 00:00:50]} {[%emt 00:00:05]} 33. d5
{[%clk 00:02:41]} {[%emt 00:00:33]} b4 {[%clk 00:00:27]} {[%emt 00:00:29]} 34.
Re8 {[%clk 00:02:44]} {[%emt 00:00:03]} Rb6 {[%clk 00:00:18]} {[%emt 00:00:14]}
35. Kd4 {[%clk 00:02:23]} {[%emt 00:00:27]} b3 {[%clk 00:00:14]} {[%emt
00:00:08]} 36. a3 {[%clk 00:02:23]} {[%emt 00:00:04]} Kf7 {[%clk 00:00:10]}
{[%emt 00:00:09]} 37. Re3 {[%clk 00:02:14]} {[%emt 00:00:14]} Rb8 {[%clk
00:00:06]} {[%emt 00:00:09]} 38. Kxc4 {[%clk 00:01:59]} {[%emt 00:00:20]} Rd8
{[%clk 00:00:06]} {[%emt 00:00:06]} 39. Rd3 {[%clk 00:02:00]} {[%emt 00:00:04]}
Rd6 {[%clk 00:00:10]} {[%emt 00:00:02]} 40. Kxb3 {[%clk 00:02:03]} Ke7 {[%clk
00:00:11]} {[%emt 00:00:04]} 41. Kc4 {[%clk 00:02:06]} {[%emt 00:00:02]} Kd7
{[%clk 00:00:06]} {[%emt 00:00:09]} 42. b4 {[%clk 00:02:10]} {[%emt 00:00:02]}
Kc7 {[%clk 00:00:07]} {[%emt 00:00:03]} 43. Re3 {[%clk 00:02:13]} {[%emt
00:00:03]} Kd7 {[%clk 00:00:11]} {[%emt 00:00:01]} 44. a4 {[%clk 00:02:17]} Rf6
{[%clk 00:00:11]} {[%emt 00:00:06]} 45. Kc5 {[%clk 00:02:16]} {[%emt 00:00:06]}
Rf4 {[%clk 00:00:09]} {[%emt 00:00:07]} 46. a5 {[%clk 00:01:40]} {[%emt
00:00:41]} Rh4 {[%clk 00:00:07]} {[%emt 00:00:08]} 47. Re4 {[%clk 00:01:43]}
{[%emt 00:00:01]} Rxh2 {[%clk 00:00:06]} {[%emt 00:00:05]} 48. d6 {[%clk
00:01:47]} Rh5+ {[%clk 00:00:10]} 49. Kb6 {[%clk 00:01:47]} {[%emt 00:00:08]}
Kxd6 {[%clk 00:00:12]} {[%emt 00:00:03]} 50. Kxa6 {[%clk 00:01:45]} {[%emt
00:00:06]} Rh1 {[%clk 00:00:07]} {[%emt 00:00:10]} 51. b5 {[%clk 00:01:45]}
{[%emt 00:00:05]} Rc1 {[%emt 00:00:07]} 52. b6 {[%clk 00:01:42]} {[%emt
00:00:07]} Kc6 {[%clk 00:00:08]} {[%emt 00:00:04]} 53. Re7 {[%clk 00:01:40]}
{[%emt 00:00:06]} Kd6 {[%clk 00:00:00]} {[%emt 00:00:09]} 0-1

[Event "Nové Hrady - Rapid A"]
[Site "Nové Hrady, Czech Republic"]
[Date "2024.08.10"]
[Round "2.3"]
[White "Šebesta, Marek"]
[Black "Prinz, Hubert"]
[Result "0-1"]
[TimeControl "2x15min+5s"]
[WhiteFideId "23765119"]
[BlackFideId "1639447"]
[WhiteElo "1707"]
[BlackElo "1986"]

1. e4 {[%emt 00:20:39]} d5 2. exd5 {[%clk 00:15:13]} Qxd5 {[%clk 00:15:14]} 3.
Nc3 {[%clk 00:15:16]} {[%emt 00:00:03]} Qd6 {[%clk 00:15:19]} 4. Nf3 {[%clk
00:15:14]} {[%emt 00:00:08]} Nf6 {[%clk 00:15:22]} 5. d4 {[%clk 00:15:08]}
{[%emt 00:00:10]} a6 {[%clk 00:15:26]} {[%emt 00:00:02]} 6. a4 {[%clk
00:15:04]} {[%emt 00:00:09]} Bg4 {[%clk 00:15:02]} {[%emt 00:00:29]} 7. h3
{[%clk 00:14:23]} {[%emt 00:00:47]} Bh5 {[%clk 00:15:05]} 8. Be2 {[%clk
00:14:18]} {[%emt 00:00:10]} c6 {[%clk 00:15:08]} {[%emt 00:00:03]} 9. Be3
{[%clk 00:13:56]} {[%emt 00:00:27]} e6 {[%clk 00:15:06]} {[%emt 00:00:06]} 10.
O-O {[%clk 00:13:56]} {[%emt 00:00:06]} Nbd7 {[%clk 00:15:04]} {[%emt
00:00:07]} 11. Qd3 {[%clk 00:13:26]} {[%emt 00:00:35]} Bg6 {[%clk 00:15:03]}
{[%emt 00:00:07]} 12. Qd2 {[%clk 00:13:13]} {[%emt 00:00:17]} Be7 {[%clk
00:14:31]} {[%emt 00:00:37]} 13. Bf4 {[%clk 00:12:09]} {[%emt 00:01:08]} Qb4
{[%clk 00:14:29]} {[%emt 00:00:07]} 14. a5 {[%clk 00:11:17]} {[%emt 00:00:59]}
Bd8 {[%clk 00:09:33]} {[%emt 00:05:00]} 15. Ra4 {[%clk 00:09:11]} {[%emt
00:02:10]} Qe7 {[%clk 00:09:36]} {[%emt 00:00:02]} 16. Ne5 {[%clk 00:08:30]}
{[%emt 00:00:45]} Nd5 {[%clk 00:09:16]} {[%emt 00:00:26]} 17. Nxg6 {[%clk
00:08:00]} {[%emt 00:00:35]} hxg6 {[%clk 00:09:18]} {[%emt 00:00:03]} 18. Bg3
{[%clk 00:07:13]} {[%emt 00:00:53]} N7f6 {[%clk 00:09:03]} {[%emt 00:00:20]} 19.
Bf3 {[%clk 00:07:00]} {[%emt 00:00:18]} Bc7 {[%clk 00:08:29]} {[%emt 00:00:39]}
20. Nxd5 {[%clk 00:06:47]} {[%emt 00:00:18]} cxd5 {[%clk 00:08:25]} {[%emt
00:00:08]} 21. b4 {[%clk 00:06:07]} {[%emt 00:00:46]} Bxg3 {[%clk 00:08:00]}
{[%emt 00:00:30]} 22. fxg3 {[%emt 00:00:04]} O-O {[%clk 00:07:51]} {[%emt
00:00:12]} 23. Raa1 {[%clk 00:05:34]} {[%emt 00:00:41]} Rfc8 {[%clk 00:07:40]}
{[%emt 00:00:16]} 24. Rae1 {[%clk 00:04:47]} {[%emt 00:00:52]} Qd6 {[%clk
00:07:30]} {[%emt 00:00:14]} 25. g4 {[%clk 00:04:37]} {[%emt 00:00:16]} Rc4
{[%clk 00:07:25]} {[%emt 00:00:10]} 26. c3 {[%clk 00:04:22]} {[%emt 00:00:21]}
Rac8 {[%clk 00:07:28]} {[%emt 00:00:01]} 27. Re3 {[%clk 00:04:07]} {[%emt
00:00:19]} Nh7 {[%clk 00:06:30]} {[%emt 00:01:03]} 28. Be2 {[%clk 00:03:47]}
{[%emt 00:00:26]} R4c7 {[%clk 00:06:27]} {[%emt 00:00:08]} 29. Ref3 {[%clk
00:02:50]} {[%emt 00:01:01]} Nf6 {[%clk 00:06:21]} {[%emt 00:00:12]} 30. g5
{[%clk 00:01:36]} {[%emt 00:01:20]} Ne4 {[%clk 00:06:23]} {[%emt 00:00:02]} 31.
Qb2 {[%clk 00:01:33]} {[%emt 00:00:07]} Nxg5 {[%clk 00:05:31]} {[%emt
00:00:57]} 32. Rd3 {[%clk 00:01:11]} {[%emt 00:00:27]} Ne4 {[%clk 00:05:21]}
{[%emt 00:00:16]} 33. Rc1 {[%clk 00:00:58]} {[%emt 00:00:18]} f5 {[%clk
00:04:45]} {[%emt 00:00:41]} 34. Bf3 {[%clk 00:00:40]} {[%emt 00:00:22]} Qf4
{[%clk 00:04:15]} {[%emt 00:00:35]} 35. Bxe4 {[%clk 00:00:33]} {[%emt
00:00:14]} fxe4 {[%clk 00:04:08]} {[%emt 00:00:12]} 36. Rf1 {[%clk 00:00:13]}
{[%emt 00:00:24]} Qxf1+ {[%clk 00:04:05]} {[%emt 00:00:07]} 37. Kxf1 {[%clk
00:00:17]} exd3 {[%clk 00:04:08]} {[%emt 00:00:03]} 38. Qf2 {[%clk 00:00:06]}
{[%emt 00:00:17]} Rf7 {[%clk 00:04:10]} {[%emt 00:00:03]} 39. Qxf7+ {[%clk
00:00:08]} {[%emt 00:00:03]} Kxf7 {[%clk 00:04:14]} 40. Ke1 {[%clk 00:00:12]}
Rxc3 {[%clk 00:04:16]} {[%emt 00:00:04]} 41. Kd2 {[%clk 00:00:17]} Rb3 {[%clk
00:04:19]} {[%emt 00:00:03]} 42. g4 {[%clk 00:00:20]} {[%emt 00:00:02]} Kf6
{[%clk 00:04:21]} {[%emt 00:00:02]} 43. h4 {[%clk 00:00:21]} {[%emt 00:00:05]}
e5 {[%clk 00:04:23]} {[%emt 00:00:03]} 44. dxe5+ {[%clk 00:00:17]} {[%emt
00:00:09]} Kxe5 {[%clk 00:04:27]} 45. h5 {[%clk 00:00:15]} {[%emt 00:00:08]}
gxh5 {[%clk 00:04:30]} {[%emt 00:00:02]} 46. gxh5 {[%clk 00:00:19]} Kd4 {[%clk
00:04:34]} {[%emt 00:00:02]} 47. h6 {[%clk 00:00:20]} {[%emt 00:00:04]} gxh6
{[%clk 00:04:38]} {[%emt 00:00:01]} 48. b5 {[%clk 00:00:24]} Rxb5 {[%clk
00:04:35]} {[%emt 00:00:09]} 49. Kd1 {[%clk 00:00:27]} {[%emt 00:00:02]} Kc3
{[%clk 00:04:38]} {[%emt 00:00:02]} 0-1